fUST/lending_fUST_20250908
["ID","MTS","AMOUNT","RATE_DAILY","PERIOD"]
[384131469,1757267445708,-608.88,0.00013972,2]
[384131470,1757267445717,-480.0,0.00013972,2]
[384131471,1757267445726,-480.0,0.00013972,2]
[384131472,1757267445735,-480.0,0.00013972,2]
[384131473,1757267445743,-480.0,0.00013972,2]
[384131474,1757267445753,-208.34710857,0.00013972,2]
[384131475,1757267445762,-170.92,0.00013972,2]
[384131476,1757267445771,-480.0,0.00013972,2]
[384131477,1757267445780,-895.54,0.00013972,2]
[384131478,1757267445789,-480.0,0.00013972,2]
[384131479,1757267445799,-480.0,0.00013972,2]
[384131480,1757267445808,-480.0,0.00013972,2]
[384131481,1757267445817,-480.0,0.00013972,2]
[384131482,1757267445826,-480.0,0.00013972,2]
[384131483,1757267445835,-480.0,0.00013972,2]
[384131484,1757267445845,-480.0,0.00013972,2]
[384131485,1757267445854,-480.0,0.00013972,2]
[384131486,1757267445863,-480.0,0.00013972,2]
[384131487,1757267445872,-480.0,0.00013972,2]
[384131488,1757267445881,-480.0,0.00013972,2]
[384131489,1757267445890,-944.03,0.00013972,2]
[384131490,1757267445900,-480.0,0.00013972,2]
[384131491,1757267445909,-480.0,0.00013972,2]
[384131492,1757267445919,-516.58,0.00013972,2]
[384131493,1757267445928,-480.0,0.00013972,2]
[384131494,1757267445939,-623.46,0.00013972,2]
[384131495,1757267445948,-547.19,0.00013972,2]
[384131496,1757267445958,-482.11682288,0.00013972,2]
[384131497,1757267445967,-976.44,0.00013972,2]
[384131498,1757267445977,-969.83,0.00013972,2]
[384131499,1757267445987,-480.0,0.00013972,2]
[384131500,1757267445996,-487.59,0.00013972,2]
[384131501,1757267446006,-480.0,0.00013972,2]
[384131502,1757267446015,-480.0,0.00013972,2]
[384131503,1757267446025,-480.0,0.00013972,2]
[384131504,1757267446034,-480.0,0.00013972,2]
[384131505,1757267446043,-480.0,0.00013972,2]
[384131506,1757267446053,-535.73,0.00013972,2]
[384131507,1757267446063,-480.0,0.00013972,2]
[384131508,1757267446072,-480.0,0.00013972,2]
[384131509,1757267446082,-484.0878355,0.00013972,2]
[384131511,1757267446091,-4049.59,0.00013972,2]
[384131512,1757267446100,-480.0,0.00013972,2]
[384131513,1757267446109,-10245.48,0.00013972,2]
[384131515,1757267446237,-480.0,0.00013972,2]
[384131516,1757267446249,-480.0,0.00013972,2]
[384131517,1757267446259,-480.0,0.00013972,2]
[384131518,1757267446269,-480.0,0.00013972,2]
[384131519,1757267446279,-480.0,0.00013972,2]
[384131520,1757267446289,-642.18,0.00013972,2]
[384131521,1757267446299,-865.61,0.00013972,2]
[384131522,1757267446308,-480.0,0.00013972,2]
[384131523,1757267446319,-3264.88,0.00013972,2]
[384131524,1757267446329,-480.0,0.00013972,2]
[384131525,1757267446339,-726.45,0.00013972,2]
[384131526,1757267446348,-480.0,0.00013972,2]
[384131527,1757267446358,-914.18,0.00013972,2]
[384131528,1757267446367,-480.0,0.00013972,2]
[384131529,1757267446377,-479.93702314,0.00013972,2]
[384131531,1757267446400,-509.32012587,0.00013972,2]
[384131533,1757267446412,-95.62285099,0.00013972,2]
[384131535,1757267446421,-480.0,0.00013972,2]
[384131536,1757267446431,-149.39994403,0.00013972,2]
[384131537,1757267446443,-330.60005597,0.00013972,2]
[384131538,1757267446453,-480.0,0.00013972,2]
[384131539,1757267446463,-493.35,0.00013972,2]
[384131540,1757267446472,-2367.33,0.00013972,2]
[384131541,1757267446483,-480.0,0.00013972,2]
[384131542,1757267446494,-599.4,0.00013972,2]
[384131543,1757267446503,-912.27,0.00013972,2]
[384131544,1757267446513,-1509.61,0.00013972,2]
[384131545,1757267446524,-480.0,0.00013972,2]
[384131546,1757267446533,-1203.75,0.00013972,2]
[384131547,1757267446543,-480.0,0.00013972,2]
[384131548,1757267446553,-1102.93,0.00013972,2]
[384131549,1757267446563,-480.0,0.00013972,2]
[384131551,1757267446573,-480.0,0.00013972,2]
[384131553,1757267446583,-1460.03,0.00013972,2]
[384131555,1757267446592,-480.0,0.00013972,2]
[384131557,1757267446602,-309.16,0.00013972,2]
[384131559,1757267446611,-2115.53,0.00013972,2]
[384131561,1757267446621,-480.0,0.00013972,2]
[384131563,1757267446632,-480.0,0.00013972,2]
[384131565,1757267446642,-480.0,0.00013972,2]
[384131567,1757267446652,-1640.8261232,0.00013972,2]
[384131569,1757267446665,-1953.5838768,0.00013972,2]
[384131571,1757267446675,-1059.46,0.00013972,2]
[384131573,1757267446684,-480.0,0.00013972,2]
[384131576,1757267446694,-480.0,0.00013972,2]
[384131577,1757267446704,-480.0,0.00013972,2]
[384131580,1757267446715,-480.0,0.00013972,2]
[384131581,1757267446726,-480.0,0.00013972,2]
[384131583,1757267446735,-607.47,0.00013972,2]
[384131585,1757267446746,-480.0,0.00013972,2]
[384131586,1757267446756,-480.0,0.00013972,2]
[384131587,1757267446765,-480.0,0.00013972,2]
[384131588,1757267446774,-324.62794953,0.00013972,2]
[384131589,1757267446784,-961.4,0.00013972,2]
[384131590,1757267446793,-480.0,0.00013972,2]
[384131593,1757267446804,-2332.0024297,0.00013972,2]
[384131599,1757267447112,-480.0,0.00013698,2]
[384131600,1757267447121,-1181.2275703,0.00013972,2]
[384131601,1757267447131,-593.42,0.00013972,2]
[384131602,1757267447140,-668.0,0.00013972,2]
[384131603,1757267447150,-480.0,0.00013972,2]
[384131604,1757267447160,-480.0,0.00013972,2]
[384131605,1757267447169,-480.0,0.00013972,2]
[384131606,1757267447179,-1591.13,0.00013972,2]
[384131607,1757267447188,-410.67304926,0.00013972,2]
[384131608,1757267447572,-1725.52695074,0.00013972,2]
[384131609,1757267447582,-492.76,0.00013972,2]
[384131610,1757267447591,-359.25627683,0.00013972,2]
[384131611,1757267447603,-120.74372317,0.00013972,2]
[384131612,1757267447614,-692.56,0.00013972,2]
[384131613,1757267447623,-480.0,0.00013972,2]
[384131614,1757267447632,-480.0,0.00013972,2]
[384131615,1757267447642,-480.0,0.00013972,2]
[384131616,1757267447654,-500.0,0.00013972,2]
[384131617,1757267447663,-480.0,0.00013972,2]
[384131618,1757267447673,-480.0,0.00013972,2]
[384131619,1757267447682,-3248.74,0.00013972,2]
[384131620,1757267447691,-2215.45,0.00013972,2]
[384131621,1757267447700,-480.0,0.00013972,2]
[384131622,1757267447708,-480.0,0.00013972,2]
[384131623,1757267447717,-756.63775314,0.00013972,2]
[384131624,1757267448650,-101.47224686,0.00013972,2]
[384131625,1757267448659,-480.0,0.00013972,2]
[384131626,1757267448669,-480.0,0.00013972,2]
[384131627,1757267448679,-814.59,0.00013972,2]
[384131628,1757267448688,-480.0,0.00013972,2]
[384131629,1757267448697,-586.69,0.00013972,2]
[384131630,1757267448707,-913.38,0.00013972,2]
[384131631,1757267448717,-1163.11,0.00013972,2]
[384131632,1757267448726,-480.0,0.00013972,2]
[384131633,1757267448736,-480.0,0.00013972,2]
[384131634,1757267448746,-480.0,0.00013972,2]
[384131635,1757267448756,-480.0,0.00013972,2]
[384131636,1757267448766,-804.11,0.00013972,2]
[384131637,1757267448775,-1883.59,0.00013972,2]
[384131638,1757267448967,-947.14,0.00013972,2]
[384131639,1757267448989,-480.0,0.00013972,2]
[384131640,1757267449005,-686.8,0.00013972,2]
[384131641,1757267449015,-480.0,0.00013972,2]
[384131642,1757267449025,-480.0,0.00013972,2]
[384131643,1757267449035,-969.75,0.00013972,2]
[384131644,1757267449044,-1610.1,0.00013972,2]
[384131645,1757267449054,-2375.17385798,0.00013972,2]
[384131646,1757267449067,-284.10614202,0.00013972,2]
[384131647,1757267449077,-480.0,0.00013972,2]
[384131648,1757267449087,-5947.23,0.00013972,2]
[384131649,1757267449096,-480.0,0.00013972,2]
[384131650,1757267449106,-2265.46,0.00013972,2]
[384131651,1757267449116,-626.29,0.00013972,2]
[384131652,1757267449125,-560.4,0.00013972,2]
[384131653,1757267449135,-803.4,0.00013972,2]
[384131654,1757267449145,-480.0,0.00013972,2]
[384131655,1757267449155,-480.0,0.00013972,2]
[384131656,1757267449164,-2501.69,0.00013972,2]
[384131657,1757267449174,-480.0,0.00013972,2]
[384131658,1757267449184,-480.0,0.00013972,2]
[384131659,1757267449194,-504.2,0.00013972,2]
[384131660,1757267449203,-910.44,0.00013972,2]
[384131661,1757267449212,-400.24088467,0.00013972,2]
[384131662,1757267449225,-1742.79911533,0.00013972,2]
[384131663,1757267449235,-930.25476794,0.00013972,2]
[384131664,1757267449247,-25391.75523206,0.00013972,2]
[384131665,1757267449257,-244.29841196,0.00013972,2]
[384131666,1757267449267,-480.0,0.00013972,2]
[384131667,1757267449277,-480.0,0.00013972,2]
[384131668,1757267449289,-611.36,0.00013972,2]
[384131669,1757267449305,-480.0,0.00013972,2]
[384131670,1757267449315,-480.0,0.00013972,2]
[384131671,1757267449325,-480.0,0.00013972,2]
[384131672,1757267449335,-480.0,0.00013972,2]
[384131673,1757267449345,-1071.64002414,0.00013972,2]
[384131674,1757267449357,-960.42997586,0.00013972,2]
[384131675,1757267449366,-480.0,0.00013972,2]
[384131676,1757267449376,-696.32,0.00013972,2]
[384131677,1757267449388,-1316.47,0.00013972,2]
[384131678,1757267449398,-480.0,0.00013972,2]
[384131679,1757267449408,-480.0,0.00013972,2]
[384131680,1757267449418,-500.0,0.00013972,2]
[384131681,1757267449428,-636.46717375,0.00013973,2]
[384131682,1757267449438,-500.0,0.00013973,2]
[384131683,1757267449448,-500.0,0.00013973,2]
[384131684,1757267449457,-500.0,0.00013973,2]
[384131685,1757267449467,-500.0,0.00013973,2]
[384131686,1757267449476,-500.0,0.00013973,2]
[384131687,1757267449487,-500.0,0.00013973,2]
[384131688,1757267449496,-500.0,0.00013973,2]
[384131689,1757267449506,-500.76948217,0.00013973,2]
[384131690,1757267449515,-58.23309526,0.00013973,2]
[384131691,1757267449721,-441.76690474,0.00013973,2]
[384131692,1757267449733,-500.0,0.00013973,2]
[384131693,1757267449743,-500.0,0.00013973,2]
[384131694,1757267449752,-500.0,0.00013973,2]
[384131695,1757267449762,-500.8327096,0.00013973,2]
[384131696,1757267449771,-500.0,0.00013973,2]
[384131697,1757267449781,-500.0,0.00013973,2]
[384131698,1757267449790,-248.82145066,0.00013973,2]
[384131699,1757267449799,-396.83510807,0.00013973,2]
[384131700,1757267449809,-500.0,0.00013973,2]
[384131701,1757267449818,-500.0,0.00013973,2]
[384131702,1757267449827,-500.0,0.00013973,2]
[384131703,1757267449837,-500.0,0.00013973,2]
[384131704,1757267449847,-500.0,0.00013973,2]
[384131705,1757267449856,-500.0,0.00013973,2]
[384131706,1757267449865,-229.92812263,0.00013973,2]
[384131707,1757267449877,-270.07187737,0.00013973,2]
[384131708,1757267449886,-101.38278016,0.00013973,2]
[384131709,1757267449898,-398.61721984,0.00013973,2]
[384131710,1757267449908,-500.0,0.00013973,2]
[384131711,1757267449918,-500.0,0.00013973,2]
[384131712,1757267449927,-500.90463239,0.00013973,2]
[384131713,1757267449937,-500.0,0.00013973,2]
[384131714,1757267449947,-503.3121361,0.00013973,2]
[384131715,1757267449956,-500.0,0.00013973,2]
[384131716,1757267449966,-500.0,0.00013973,2]
[384131717,1757267449977,-522.09029856,0.00013973,2]
[384131718,1757267449986,-500.0,0.00013973,2]
[384131719,1757267449996,-500.0,0.00013973,2]
[384131720,1757267450007,-500.73083147,0.00013973,2]
[384131721,1757267450016,-500.0,0.00013973,2]
[384131722,1757267450025,-500.0,0.00013973,2]
[384131723,1757267450034,-500.0,0.00013973,2]
[384131724,1757267450044,-500.0,0.00013973,2]
[384131725,1757267450054,-85526.61563272,0.0001399,2]
[384131726,1757267702439,300.0,0.00013696,2]
[384131727,1757267745912,-200.0,0.00013697,2]
[384131728,1757267745942,-200.0,0.00013697,2]
[384131729,1757267745972,-572.3138891,0.00013697,2]
[384131730,1757267746000,-200.0,0.00013697,2]
[384131731,1757267746029,-500.0,0.00013697,2]
[384131732,1757267746059,-500.0,0.00013697,2]
[384131733,1757267746225,-500.0,0.00013697,2]
[384131734,1757267746254,-500.0,0.00013697,2]
[384131735,1757267746281,-500.0,0.00013697,2]
[384131736,1757267746310,-500.0,0.00013697,2]
[384131737,1757267746338,-500.0,0.00013697,2]
[384131738,1757267746366,-155.3822218,0.00013697,2]
[384131739,1757267746539,-344.6177782,0.00013697,2]
[384131740,1757267746568,-500.0,0.00013697,2]
[384131741,1757267746597,-214.99828264,0.00013697,2]
[384131742,1757267746740,-500.0,0.00013697,2]
[384131743,1757267746771,-500.0,0.00013697,2]
[384131744,1757267746800,-500.0,0.00013697,2]
[384131745,1757267746829,-500.0,0.00013697,2]
[384131746,1757267746858,-500.0,0.00013697,2]
[384131747,1757267746891,-500.0,0.00013697,2]
[384131748,1757267746921,-500.0,0.00013697,2]
[384131749,1757267746950,-380.77787832,0.00013697,2]
[384131750,1757267747254,-119.22212168,0.00013697,2]
[384131751,1757267747284,-500.0,0.00013697,2]
[384131752,1757267747314,-500.0,0.00013697,2]
[384131753,1757267747345,-500.0,0.00013697,2]
[384131754,1757267747375,-500.0,0.00013697,2]
[384131755,1757267747403,-500.0,0.00013697,2]
[384131756,1757267747433,-500.0,0.00013697,2]
[384131757,1757267747464,-500.0,0.00013697,2]
[384131758,1757267747495,-500.0,0.00013697,2]
[384131759,1757267747529,-500.0,0.00013697,2]
[384131760,1757267747560,-261.56575664,0.00013697,2]
[384131761,1757267747734,-238.43424336,0.00013697,2]
[384131762,1757267747765,-500.0,0.00013697,2]
[384131763,1757267763094,300.0,0.00013697,2]
[384131764,1757267822587,300.0,0.00013697,2]
[384131765,1757267882789,300.0,0.00013697,2]
[384131768,1757267941762,1465.08391226,0.00013561,2]
[384131769,1757267972185,407.24819139,0.00013561,2]
[384131770,1757267977336,769.0933119,0.00012941,2]
[384131772,1757267980260,300.0,0.00013561,2]
[384131773,1757267988896,6158.58458445,0.00013561,2]
[384131774,1757267988921,6252.91229619,0.00013561,2]
[384131775,1757268002540,300.0,0.00013697,2]
[384131776,1757268005130,155.90967631,0.00013561,2]
[384131777,1757268010348,19292.2273969,0.0001369,2]
[384131778,1757268010432,151.0,0.0001369,2]
[384131779,1757268011050,151.0,0.0001369,2]
[384131780,1757268011688,151.0,0.0001369,2]
[384131781,1757268012349,151.0,0.0001369,2]
[384131782,1757268012979,151.0,0.0001369,2]
[384131783,1757268014463,168.3888056,0.0001369,2]
[384131784,1757268022882,2105.41764886,0.0001369,2]
[384131785,1757268028597,376.19659508,0.00013561,2]
[384131786,1757268309259,114.12123731,0.0001369,2]
[384131889,1757268637672,-4032.65871364,0.00013598,2]
[384131974,1757268640559,-4868.6081072,0.00013598,2]
[384132487,1757268645832,-40421.13527111,0.00013598,2]
[384132501,1757268645961,-36096.03419754,0.00013598,2]
[384132503,1757268645970,-300.0,0.00013689,2]
[384132505,1757268645980,-1339.91464937,0.0001369,2]
[384132507,1757268645989,-214.11918731,0.0001369,2]
[384132509,1757268645998,-2105.41764886,0.0001369,2]
[384132511,1757268646008,-179.07847005,0.00013697,2]
[384132513,1757268646017,-3388.23993846,0.00013697,2]
[384132515,1757268646026,-480.0,0.00013698,2]
[384132517,1757268646036,-480.0,0.00013698,2]
[384132519,1757268646045,-480.0,0.00013698,2]
[384132521,1757268646055,-482.64,0.00013698,2]
[384132523,1757268646065,-480.0,0.00013698,2]
[384132525,1757268646074,-480.0,0.00013698,2]
[384132527,1757268646084,-480.0,0.00013698,2]
[384132529,1757268646094,-480.0,0.00013698,2]
[384132531,1757268646103,-480.0,0.00013698,2]
[384132533,1757268646112,-483.19625541,0.00013698,2]
[384132535,1757268646122,-480.0,0.00013698,2]
[384132537,1757268646132,-622.44585856,0.00013698,2]
[384132539,1757268646141,-480.0,0.00013698,2]
[384132541,1757268646150,-480.0,0.00013698,2]
[384132543,1757268646159,-480.0,0.00013698,2]
[384132545,1757268646169,-480.0,0.00013698,2]
[384132547,1757268646179,-480.0,0.00013698,2]
[384132549,1757268646188,-587.91,0.00013698,2]
[384132551,1757268646198,-480.0,0.00013698,2]
[384132553,1757268646207,-480.0,0.00013698,2]
[384132555,1757268646217,-513.7,0.00013698,2]
[384132557,1757268646230,-480.0,0.00013698,2]
[384132559,1757268646239,-480.0,0.00013698,2]
[384132561,1757268646249,-480.0,0.00013698,2]
[384132563,1757268646258,-512.36,0.00013698,2]
[384132564,1757268646270,-480.0,0.00013698,2]
[384132567,1757268646280,-480.0,0.00013698,2]
[384132568,1757268646289,-480.0,0.00013698,2]
[384132570,1757268646299,-480.0,0.00013698,2]
[384132572,1757268646309,-480.0,0.00013698,2]
[384132574,1757268646318,-480.0,0.00013698,2]
[384132576,1757268646327,-480.0,0.00013698,2]
[384132578,1757268646337,-2216.68,0.00013698,2]
[384132580,1757268646347,-480.0,0.00013698,2]
[384132582,1757268646356,-896.45,0.00013698,2]
[384132584,1757268646366,-480.0,0.00013698,2]
[384132585,1757268646374,-480.0,0.00013698,2]
[384132586,1757268646384,-480.0,0.00013698,2]
[384132587,1757268646393,-480.0,0.00013698,2]
[384132588,1757268646403,-480.0,0.00013698,2]
[384132589,1757268646412,-574.1,0.00013698,2]
[384132590,1757268646421,-236.16,0.00013698,2]
[384132591,1757268646430,-480.0,0.00013698,2]
[384132592,1757268646439,-655.05,0.00013698,2]
[384132593,1757268646448,-480.0,0.00013698,2]
[384132594,1757268646457,-162.51787328,0.00013698,2]
[384132595,1757268646467,-480.0,0.00013698,2]
[384132596,1757268646477,-506.8797394,0.00013698,2]
[384132597,1757268646490,-480.0,0.00013698,2]
[384132598,1757268646499,-480.0,0.00013698,2]
[384132599,1757268646509,-480.0,0.00013698,2]
[384132600,1757268646518,-638.43,0.00013698,2]
[384132601,1757268646527,-480.0,0.00013698,2]
[384132602,1757268646536,-480.0,0.00013698,2]
[384132603,1757268646545,-777.16,0.00013698,2]
[384132604,1757268646554,-480.0,0.00013698,2]
[384132605,1757268646563,-483.2922134,0.00013698,2]
[384132606,1757268646572,-480.0,0.00013698,2]
[384132607,1757268646581,-480.0,0.00013698,2]
[384132608,1757268646591,-480.0,0.00013698,2]
[384132609,1757268646600,-522.24037431,0.00013698,2]
[384132610,1757268646610,-855.67,0.00013698,2]
[384132611,1757268646619,-480.0,0.00013698,2]
[384132612,1757268646629,-281.400848,0.00013698,2]
[384132613,1757268646638,-530.53700526,0.00013698,2]
[384132614,1757268646649,-480.0,0.00013698,2]
[384132615,1757268646658,-480.0,0.00013698,2]
[384132616,1757268646667,-480.0,0.00013698,2]
[384132617,1757268646676,-614.1,0.00013698,2]
[384132618,1757268646686,-480.0,0.00013698,2]
[384132619,1757268646695,-480.0,0.00013698,2]
[384132620,1757268646705,-622.52,0.00013698,2]
[384132621,1757268646714,-798.29,0.00013698,2]
[384132622,1757268646723,-480.0,0.00013698,2]
[384132623,1757268646733,-480.0,0.00013698,2]
[384132624,1757268646742,-480.0,0.00013698,2]
[384132625,1757268646751,-151.0,0.00013698,2]
[384132626,1757268646760,-480.0,0.00013698,2]
[384132627,1757268646769,-512.09,0.00013698,2]
[384132628,1757268646778,-480.0,0.00013698,2]
[384132629,1757268646787,-591.73725784,0.00013698,2]
[384132630,1757268646796,-480.0,0.00013698,2]
[384132631,1757268646806,-619.23,0.00013698,2]
[384132632,1757268646815,-484.29,0.00013698,2]
[384132633,1757268646825,-480.0,0.00013698,2]
[384132634,1757268646834,-533.09,0.00013698,2]
[384132635,1757268646843,-608.95738961,0.00013698,2]
[384132636,1757268646853,-480.0,0.00013698,2]
[384132637,1757268646862,-480.0,0.00013698,2]
[384132638,1757268646871,-480.0,0.00013698,2]
[384132639,1757268646879,-480.0,0.00013698,2]
[384132640,1757268646888,-480.0,0.00013698,2]
[384132641,1757268646898,-480.0,0.00013698,2]
[384132642,1757268646907,-480.0,0.00013698,2]
[384132643,1757268646916,-480.0,0.00013698,2]
[384132644,1757268646926,-386.7781081,0.00013698,2]
[384132645,1757268646935,-530.04,0.00013698,2]
[384132646,1757268646944,-480.0,0.00013698,2]
[384132647,1757268646954,-798.84,0.00013698,2]
[384132648,1757268646964,-480.0,0.00013698,2]
[384132649,1757268646974,-857.83,0.00013698,2]
[384132650,1757268646983,-480.0,0.00013698,2]
[384132651,1757268646992,-480.0,0.00013698,2]
[384132652,1757268647001,-151.0,0.00013698,2]
[384132653,1757268647010,-558.92,0.00013698,2]
[384132654,1757268647019,-516.18,0.00013698,2]
[384132655,1757268647028,-480.0,0.00013698,2]
[384132656,1757268647038,-480.0,0.00013698,2]
[384132657,1757268647047,-666.75,0.00013698,2]
[384132658,1757268647056,-480.0,0.00013698,2]
[384132659,1757268647065,-998.49,0.00013698,2]
[384132660,1757268647075,-667.54,0.00013698,2]
[384132661,1757268647085,-571.35,0.00013698,2]
[384132662,1757268647094,-480.0,0.00013698,2]
[384132663,1757268647104,-704.61,0.00013698,2]
[384132664,1757268647114,-480.0,0.00013698,2]
[384132665,1757268647123,-151.0,0.00013698,2]
[384132666,1757268647133,-151.0,0.00013698,2]
[384132667,1757268647142,-151.0,0.00013698,2]
[384132668,1757268647152,-480.0,0.00013698,2]
[384132669,1757268647161,-480.0,0.00013698,2]
[384132670,1757268647171,-1225.67,0.00013698,2]
[384132671,1757268647181,-480.0,0.00013698,2]
[384132672,1757268647190,-480.0,0.00013698,2]
[384132673,1757268647200,-5590.71,0.00013698,2]
[384132674,1757268647209,-480.0,0.00013698,2]
[384132675,1757268647222,-588.67,0.00013698,2]
[384132676,1757268647231,-973.16,0.00013698,2]
[384132677,1757268647241,-480.0,0.00013698,2]
[384132678,1757268647251,-531.48,0.00013698,2]
[384132679,1757268647260,-480.0,0.00013698,2]
[384132680,1757268647271,-370.90873785,0.00013698,2]
[384132681,1757268647280,-480.0,0.00013698,2]
[384132682,1757268647290,-509.27,0.00013698,2]
[384132683,1757268647299,-480.0,0.00013698,2]
[384132684,1757268647308,-480.0,0.00013698,2]
[384132685,1757268647318,-2654.72,0.00013698,2]
[384132686,1757268647327,-895.19,0.00013698,2]
[384132687,1757268647337,-480.0,0.00013698,2]
[384132688,1757268647346,-480.0,0.00013698,2]
[384132689,1757268647356,-1067.92,0.00013698,2]
[384132690,1757268647365,-480.0,0.00013698,2]
[384132691,1757268647375,-480.0,0.00013698,2]
[384132692,1757268647387,-558.14,0.00013698,2]
[384132693,1757268647396,-527.46,0.00013698,2]
[384132694,1757268647405,-579.98,0.00013698,2]
[384132695,1757268647415,-480.0,0.00013698,2]
[384132696,1757268647424,-916.29,0.00013698,2]
[384132697,1757268647433,-3712.13,0.00013698,2]
[384132698,1757268647443,-480.0,0.00013698,2]
[384132699,1757268647452,-480.0,0.00013698,2]
[384132700,1757268647461,-2170.05,0.00013698,2]
[384132701,1757268647470,-151.0,0.00013698,2]
[384132702,1757268647480,-151.0,0.00013698,2]
[384132703,1757268647489,-151.0,0.00013698,2]
[384132704,1757268647499,-151.0,0.00013698,2]
[384132705,1757268647509,-873.72,0.00013698,2]
[384132706,1757268647518,-28627.95,0.00013698,2]
[384132707,1757268647528,-999.94,0.00013698,2]
[384132708,1757268647537,-546.73,0.00013698,2]
[384132709,1757268647547,-480.0,0.00013698,2]
[384132710,1757268647556,-480.0,0.00013698,2]
[384132711,1757268647677,-1160.42,0.00013698,2]
[384132712,1757268647687,-1364.0,0.00013698,2]
[384132713,1757268647697,-480.0,0.00013698,2]
[384132714,1757268647706,-151.0,0.00013698,2]
[384132715,1757268647715,-151.0,0.00013698,2]
[384132716,1757268647725,-929.01,0.00013698,2]
[384132717,1757268647734,-151.0,0.00013698,2]
[384132718,1757268647743,-151.0,0.00013698,2]
[384132719,1757268647753,-480.0,0.00013698,2]
[384132720,1757268647762,-151.0,0.00013698,2]
[384132721,1757268647771,-151.0,0.00013698,2]
[384132722,1757268647781,-480.0,0.00013698,2]
[384132723,1757268647790,-480.0,0.00013698,2]
[384132724,1757268647800,-480.0,0.00013698,2]
[384132725,1757268647809,-991.18,0.00013698,2]
[384132726,1757268647818,-480.0,0.00013698,2]
[384132727,1757268647827,-480.0,0.00013698,2]
[384132728,1757268647837,-480.0,0.00013698,2]
[384132729,1757268647847,-3690.15,0.00013698,2]
[384132730,1757268647856,-480.0,0.00013698,2]
[384132731,1757268647866,-3401.26,0.00013698,2]
[384132732,1757268647875,-543.97,0.00013698,2]
[384132733,1757268647885,-805.91,0.00013698,2]
[384132734,1757268647894,-996.25,0.00013698,2]
[384132735,1757268647904,-3857.4,0.00013698,2]
[384132736,1757268647914,-480.0,0.00013698,2]
[384132737,1757268647924,-2249.04,0.00013698,2]
[384132738,1757268647934,-208.50856281,0.00013698,2]
[384132739,1757268647945,-2362.42,0.00013698,2]
[384132740,1757268647954,-621.03,0.00013698,2]
[384132741,1757268647965,-596.6,0.00013698,2]
[384132742,1757268647975,-3371.35,0.00013698,2]
[384132743,1757268647984,-556.17047711,0.00013698,2]
[384132744,1757268647993,-480.0,0.00013698,2]
[384132745,1757268648003,-480.0,0.00013698,2]
[384132746,1757268648012,-480.0,0.00013698,2]
[384132747,1757268648022,-151.0,0.00013698,2]
[384132748,1757268648031,-246.753734,0.00013698,2]
[384132749,1757268648041,-913.33,0.00013698,2]
[384132750,1757268648051,-913.0,0.00013698,2]
[384132751,1757268648061,-2334.08,0.00013698,2]
[384132752,1757268648071,-480.0,0.00013698,2]
[384132753,1757268648080,-480.0,0.00013698,2]